[Event "Titled Tuesday Blitz August 15 Late 2023"]
[White "ArtemDyachuk"]
[Black "Matinian, Nikita"]
[BlackFideId "24129100"]
[WhiteElo "2545"]
[BlackElo "2721"]
[Result "0-1"]
[Round "5"]
[TimeControl "180+1"]
[Date "2023.08.15"]
[WhiteClock "0:00:00"]
[BlackClock "0:01:51"]
[Board "48"]

1. e4 {[%clk 0:03:00]}  c5 {[%clk 0:02:58]} 2. Nf3 {[%clk 0:02:49]}  Nc6 {[%clk 0:02:57]} 3. Bb5 {[%clk 0:02:48]}  g6 {[%clk 0:02:57]} 4. O-O {[%clk 0:02:40]}  Bg7 {[%clk 0:02:56]} 5. Bxc6 {[%clk 0:02:18]}  dxc6 {[%clk 0:02:57]} 6. h3 {[%clk 0:02:05]}  Nf6 {[%clk 0:02:57]} 7. d3 {[%clk 0:01:38]}  Nd7 {[%clk 0:02:57]} 8. Nc3 {[%clk 0:01:34]}  e5 {[%clk 0:02:54]} 9. Be3 {[%clk 0:01:34]}  b6 {[%clk 0:02:52]} 10. Nd2 {[%clk 0:01:34]}  Nf8 {[%clk 0:02:51]} 11. f4 {[%clk 0:01:08]}  exf4 {[%clk 0:02:51]} 12. Bxf4 {[%clk 0:01:09]}  Ne6 {[%clk 0:02:51]} 13. Bg3 {[%clk 0:01:06]}  O-O {[%clk 0:02:27]} 14. Nc4 {[%clk 0:01:05]}  Ba6 {[%clk 0:02:15]} 15. Nd2 {[%clk 0:00:56]}  Qg5 {[%clk 0:02:08]} 16. Kh2 {[%clk 0:00:50]}  Rad8 {[%clk 0:01:59]} 17. Nf3 {[%clk 0:00:44]}  Qe7 {[%clk 0:01:59]} 18. e5 {[%clk 0:00:41]}  c4 {[%clk 0:01:56]} 19. d4 {[%clk 0:00:36]}  f5 {[%clk 0:01:54]} 20. d5 {[%clk 0:00:00]}  cxd5 {[%clk 0:01:51]} 0-1


[Site "https://www.chess.com"]

[Event "Titled Tuesday Blitz August 15 Late 2023"]
[White "Leiva, Gianmarco"]
[Black "D`Arruda, Ricardo D."]
[WhiteFideId "3804399"]
[BlackFideId "100692"]
[WhiteElo "2709"]
[BlackElo "2536"]
[Result "0-1"]
[Round "5"]
[TimeControl "180+1"]
[Date "2023.08.15"]
[WhiteClock "0:00:00"]
[BlackClock "0:00:08"]
[Board "49"]

1. Nf3 {[%clk 0:02:34]}  d5 {[%clk 0:02:58]} 2. g3 {[%clk 0:02:34]}  Nf6 {[%clk 0:02:58]} 3. Bg2 {[%clk 0:02:34]}  g6 {[%clk 0:02:59]} 4. O-O {[%clk 0:02:35]}  Bg7 {[%clk 0:02:59]} 5. d4 {[%clk 0:02:34]}  O-O {[%clk 0:02:58]} 6. c4 {[%clk 0:02:34]}  c6 {[%clk 0:02:58]} 7. b3 {[%clk 0:02:34]}  Ne4 {[%clk 0:02:57]} 8. Bb2 {[%clk 0:02:31]}  Nd7 {[%clk 0:02:57]} 9. e3 {[%clk 0:02:26]}  Ndf6 {[%clk 0:02:55]} 10. Nbd2 {[%clk 0:02:16]}  Nxd2 {[%clk 0:02:55]} 11. Qxd2 {[%clk 0:02:14]}  Ne4 {[%clk 0:02:54]} 12. Qe2 {[%clk 0:02:12]}  Bg4 {[%clk 0:02:47]} 13. h3 {[%clk 0:02:09]}  Bf5 {[%clk 0:02:47]} 14. Rac1 {[%clk 0:01:40]}  Qa5 {[%clk 0:02:44]} 15. Ba1 {[%clk 0:01:35]}  Rfd8 {[%clk 0:02:38]} 16. Rfd1 {[%clk 0:01:28]}  Rac8 {[%clk 0:02:36]} 17. Ne5 {[%clk 0:01:23]}  Nf6 {[%clk 0:02:09]} 18. Bc3 {[%clk 0:00:51]}  Qa6 {[%clk 0:02:07]} 19. Bb4 {[%clk 0:00:51]}  Kf8 {[%clk 0:02:01]} 20. Nd3 {[%clk 0:00:48]}  Be4 {[%clk 0:01:45]} 21. Bf1 {[%clk 0:00:46]}  b6 {[%clk 0:01:37]} 22. Nf4 {[%clk 0:00:28]}  dxc4 {[%clk 0:01:34]} 23. bxc4 {[%clk 0:00:25]}  Qb7 {[%clk 0:01:24]} 24. f3 {[%clk 0:00:19]}  Bf5 {[%clk 0:01:13]} 25. e4 {[%clk 0:00:19]}  Bd7 {[%clk 0:01:06]} 26. e5 {[%clk 0:00:20]}  Ng8 {[%clk 0:01:01]} 27. e6 {[%clk 0:00:19]}  Bxe6 {[%clk 0:00:59]} 28. Nxe6+ {[%clk 0:00:19]}  fxe6 {[%clk 0:01:00]} 29. Qe4 {[%clk 0:00:04]}  Qc7 {[%clk 0:00:56]} 30. Kg2 {[%clk 0:00:03]}  c5 {[%clk 0:00:42]} 31. dxc5 {[%clk 0:00:03]}  bxc5 {[%clk 0:00:42]} 32. Be1 {[%clk 0:00:02]}  Rd6 {[%clk 0:00:32]} 33. Rxd6 {[%clk 0:00:02]}  Qxd6 {[%clk 0:00:29]} 34. Bf2 {[%clk 0:00:01]}  Bd4 {[%clk 0:00:28]} 35. Rd1 {[%clk 0:00:01]}  e5 {[%clk 0:00:28]} 36. Be1 {[%clk 0:00:02]}  Nf6 {[%clk 0:00:26]} 37. Qh4 {[%clk 0:00:02]}  Kg7 {[%clk 0:00:25]} 38. Bd2 {[%clk 0:00:03]}  h5 {[%clk 0:00:24]} 39. Bg5 {[%clk 0:00:03]}  Rb8 {[%clk 0:00:22]} 40. g4 {[%clk 0:00:03]}  Rb2+ {[%clk 0:00:22]} 41. Rd2 {[%clk 0:00:03]}  Rxd2+ {[%clk 0:00:21]} 42. Bxd2 {[%clk 0:00:04]}  e4 {[%clk 0:00:15]} 43. gxh5 {[%clk 0:00:03]}  exf3+ {[%clk 0:00:15]} 44. Kxf3 {[%clk 0:00:03]}  Qc6+ {[%clk 0:00:15]} 45. Ke2 {[%clk 0:00:03]}  Qe4+ {[%clk 0:00:13]} 46. Kd1 {[%clk 0:00:03]}  Qxh4 {[%clk 0:00:12]} 47. h6+ {[%clk 0:00:03]}  Kh7 {[%clk 0:00:10]} 48. Bd3 {[%clk 0:00:02]}  Ne4 {[%clk 0:00:10]} 49. Be1 {[%clk 0:00:02]}  Bf2 {[%clk 0:00:08]} 50. Ba5 {[%clk 0:00:00]}  Qf4 {[%clk 0:00:08]} 0-1


[Site "https://www.chess.com"]

[Event "Titled Tuesday Blitz August 15 Late 2023"]
[White "Poltorak, Sebastian"]
[Black "Gubajdullin, Alexei"]
[WhiteFideId "1199498"]
[BlackFideId "4141202"]
[WhiteElo "2530"]
[BlackElo "2702"]
[Result "1-0"]
[Round "5"]
[TimeControl "180+1"]
[Date "2023.08.15"]
[WhiteClock "0:00:08"]
[BlackClock "0:00:00"]
[Board "51"]

1. e4 {[%clk 0:02:59]}  g6 {[%clk 0:02:59]} 2. d4 {[%clk 0:02:58]}  d6 {[%clk 0:02:58]} 3. Nc3 {[%clk 0:02:57]}  a6 {[%clk 0:02:55]} 4. Be3 {[%clk 0:02:57]}  b5 {[%clk 0:02:50]} 5. g4 {[%clk 0:02:57]}  Nd7 {[%clk 0:02:47]} 6. Bg2 {[%clk 0:02:55]}  Bb7 {[%clk 0:02:47]} 7. h4 {[%clk 0:02:36]}  h5 {[%clk 0:02:36]} 8. gxh5 {[%clk 0:02:36]}  Rxh5 {[%clk 0:02:36]} 9. Nge2 {[%clk 0:02:36]}  Ngf6 {[%clk 0:02:32]} 10. Ng3 {[%clk 0:02:35]}  Rh7 {[%clk 0:02:32]} 11. h5 {[%clk 0:02:35]}  Nxh5 {[%clk 0:02:27]} 12. Nxh5 {[%clk 0:02:31]}  gxh5 {[%clk 0:02:26]} 13. Rxh5 {[%clk 0:02:31]}  Rxh5 {[%clk 0:02:26]} 14. Qxh5 {[%clk 0:02:32]}  Nf6 {[%clk 0:02:02]} 15. Qh8 {[%clk 0:01:40]}  Ng4 {[%clk 0:01:49]} 16. O-O-O {[%clk 0:01:09]}  Nxe3 {[%clk 0:01:45]} 17. fxe3 {[%clk 0:01:09]}  e6 {[%clk 0:01:40]} 18. Qh5 {[%clk 0:00:52]}  Qe7 {[%clk 0:01:34]} 19. Rf1 {[%clk 0:00:52]}  b4 {[%clk 0:01:30]} 20. Ne2 {[%clk 0:00:50]}  a5 {[%clk 0:00:57]} 21. c3 {[%clk 0:00:17]}  bxc3 {[%clk 0:00:49]} 22. Nxc3 {[%clk 0:00:18]}  a4 {[%clk 0:00:44]} 23. a3 {[%clk 0:00:12]}  Bg7 {[%clk 0:00:25]} 24. Nxa4 {[%clk 0:00:11]}  Kf8 {[%clk 0:00:22]} 25. Nc3 {[%clk 0:00:11]}  c5 {[%clk 0:00:19]} 26. d5 {[%clk 0:00:08]}  Kg8 {[%clk 0:00:17]} 27. Bh3 {[%clk 0:00:07]}  exd5 {[%clk 0:00:16]} 28. Nxd5 {[%clk 0:00:08]}  Bxd5 {[%clk 0:00:16]} 29. Qxd5 {[%clk 0:00:09]}  Rb8 {[%clk 0:00:15]} 30. Rxf7 {[%clk 0:00:10]}  Qe5 {[%clk 0:00:10]} 31. Rb7+ {[%clk 0:00:08]}  Kh7 {[%clk 0:00:08]} 32. Qxe5 {[%clk 0:00:07]}  Rxb7 {[%clk 0:00:04]} 33. Qh5+ {[%clk 0:00:06]}  Kg8 {[%clk 0:00:03]} 34. Be6+ {[%clk 0:00:07]}  Kf8 {[%clk 0:00:04]} 35. Qf5+ {[%clk 0:00:07]}  Ke8 {[%clk 0:00:04]} 36. Bd5 {[%clk 0:00:07]}  Rc7 {[%clk 0:00:01]} 37. Qe6+ {[%clk 0:00:07]}  Kd8 {[%clk 0:00:00]} 38. Qxd6+ {[%clk 0:00:08]} 1-0


[Site "https://www.chess.com"]

[Event "Titled Tuesday Blitz August 15 Late 2023"]
[White "RrainlessBobot"]
[Black "Timmermans, Mark"]
[BlackFideId "1026399"]
[WhiteElo "2530"]
[BlackElo "2702"]
[Result "1-0"]
[Round "5"]
[TimeControl "180+1"]
[Date "2023.08.15"]
[WhiteClock "0:00:33"]
[BlackClock "0:00:22"]
[Board "52"]

1. Nf3 {[%clk 0:03:00]}  Nf6 {[%clk 0:02:59]} 2. g3 {[%clk 0:03:00]}  e6 {[%clk 0:02:59]} 3. Bg2 {[%clk 0:03:00]}  d5 {[%clk 0:03:00]} 4. O-O {[%clk 0:03:01]}  Be7 {[%clk 0:03:01]} 5. d3 {[%clk 0:03:02]}  O-O {[%clk 0:03:02]} 6. Nbd2 {[%clk 0:03:02]}  b5 {[%clk 0:03:02]} 7. e4 {[%clk 0:03:02]}  Bb7 {[%clk 0:03:02]} 8. e5 {[%clk 0:03:02]}  Nfd7 {[%clk 0:03:03]} 9. Re1 {[%clk 0:03:03]}  c5 {[%clk 0:03:04]} 10. Nf1 {[%clk 0:03:02]}  Nc6 {[%clk 0:03:04]} 11. h4 {[%clk 0:03:02]}  a5 {[%clk 0:03:04]} 12. h5 {[%clk 0:03:02]}  a4 {[%clk 0:03:05]} 13. h6 {[%clk 0:03:03]}  g6 {[%clk 0:03:04]} 14. a3 {[%clk 0:03:04]}  b4 {[%clk 0:03:03]} 15. N1h2 {[%clk 0:03:01]}  Qb6 {[%clk 0:02:59]} 16. Ng4 {[%clk 0:02:58]}  Nd4 {[%clk 0:02:56]} 17. Nxd4 {[%clk 0:02:34]}  cxd4 {[%clk 0:02:57]} 18. axb4 {[%clk 0:02:28]}  Qxb4 {[%clk 0:02:56]} 19. Bd2 {[%clk 0:02:11]}  Qc5 {[%clk 0:02:56]} 20. c3 {[%clk 0:02:07]}  a3 {[%clk 0:02:51]} 21. cxd4 {[%clk 0:01:56]}  Qxd4 {[%clk 0:02:50]} 22. Bc3 {[%clk 0:01:54]}  Qc5 {[%clk 0:02:45]} 23. d4 {[%clk 0:01:54]}  Qc7 {[%clk 0:02:36]} 24. Qd2 {[%clk 0:01:50]}  Nb6 {[%clk 0:02:32]} 25. bxa3 {[%clk 0:01:47]}  Nc4 {[%clk 0:02:30]} 26. Qf4 {[%clk 0:01:39]}  Nxa3 {[%clk 0:02:24]} 27. Bb4 {[%clk 0:01:37]}  Nc4 {[%clk 0:02:14]} 28. Bxe7 {[%clk 0:01:34]}  Qxe7 {[%clk 0:02:15]} 29. Reb1 {[%clk 0:01:32]}  Bc6 {[%clk 0:02:03]} 30. Bf1 {[%clk 0:01:28]}  Rfb8 {[%clk 0:01:56]} 31. Nf6+ {[%clk 0:01:05]}  Kh8 {[%clk 0:01:56]} 32. Qg5 {[%clk 0:01:04]}  Qd8 {[%clk 0:01:35]} 33. Bd3 {[%clk 0:01:00]}  Rxa1 {[%clk 0:01:09]} 34. Rxa1 {[%clk 0:01:00]}  Ra8 {[%clk 0:01:08]} 35. Rxa8 {[%clk 0:00:53]}  Bxa8 {[%clk 0:01:03]} 36. Nxh7 {[%clk 0:00:48]}  Qg8 {[%clk 0:00:54]} 37. Nf6 {[%clk 0:00:49]}  Qd8 {[%clk 0:00:50]} 38. Bxg6 {[%clk 0:00:39]}  Nd2 {[%clk 0:00:22]} 39. Bh5 {[%clk 0:00:33]} 1-0


[Site "https://www.chess.com"]

[Event "Titled Tuesday Blitz August 15 Late 2023"]
[White "Radivojevic, Ivan"]
[Black "Rastbod, Ali"]
[WhiteFideId "928461"]
[BlackFideId "12567477"]
[WhiteElo "2519"]
[BlackElo "2667"]
[Result "0-1"]
[Round "5"]
[TimeControl "180+1"]
[Date "2023.08.15"]
[WhiteClock "0:00:03"]
[BlackClock "0:00:13"]
[Board "54"]

1. e4 {[%clk 0:03:00]}  c5 {[%clk 0:02:50]} 2. Nc3 {[%clk 0:03:00]}  Nc6 {[%clk 0:02:50]} 3. Bb5 {[%clk 0:03:00]}  Nd4 {[%clk 0:02:46]} 4. Nf3 {[%clk 0:02:59]}  g6 {[%clk 0:02:43]} 5. O-O {[%clk 0:02:57]}  Bg7 {[%clk 0:02:43]} 6. Re1 {[%clk 0:02:51]}  e6 {[%clk 0:02:34]} 7. Bf1 {[%clk 0:02:37]}  Ne7 {[%clk 0:02:24]} 8. Nxd4 {[%clk 0:02:33]}  cxd4 {[%clk 0:02:23]} 9. Nb5 {[%clk 0:02:20]}  Qb6 {[%clk 0:02:06]} 10. c3 {[%clk 0:02:20]}  Nc6 {[%clk 0:01:43]} 11. Nd6+ {[%clk 0:02:14]}  Ke7 {[%clk 0:01:43]} 12. Nxc8+ {[%clk 0:02:11]}  Raxc8 {[%clk 0:01:44]} 13. h4 {[%clk 0:01:52]}  h6 {[%clk 0:01:32]} 14. g3 {[%clk 0:01:51]}  Ne5 {[%clk 0:01:19]} 15. Bg2 {[%clk 0:01:42]}  d3 {[%clk 0:01:14]} 16. b3 {[%clk 0:01:35]}  g5 {[%clk 0:01:11]} 17. h5 {[%clk 0:01:29]}  g4 {[%clk 0:01:02]} 18. Ba3+ {[%clk 0:01:23]}  d6 {[%clk 0:01:02]} 19. c4 {[%clk 0:01:15]}  Bf6 {[%clk 0:00:57]} 20. Bb2 {[%clk 0:01:12]}  Nf3+ {[%clk 0:00:40]} 21. Bxf3 {[%clk 0:01:10]}  Bxb2 {[%clk 0:00:41]} 22. Bxg4 {[%clk 0:01:05]}  Bxa1 {[%clk 0:00:41]} 23. Qxa1 {[%clk 0:01:06]}  Rhg8 {[%clk 0:00:41]} 24. Qd1 {[%clk 0:00:41]}  Qd4 {[%clk 0:00:41]} 25. Re3 {[%clk 0:00:35]}  f5 {[%clk 0:00:34]} 26. Bh3 {[%clk 0:00:17]}  f4 {[%clk 0:00:34]} 27. Rf3 {[%clk 0:00:11]}  Rxg3+ {[%clk 0:00:33]} 28. Rxg3 {[%clk 0:00:10]}  fxg3 {[%clk 0:00:34]} 29. Qf3 {[%clk 0:00:10]}  Qxf2+ {[%clk 0:00:28]} 30. Qxf2 {[%clk 0:00:10]}  gxf2+ {[%clk 0:00:29]} 31. Kxf2 {[%clk 0:00:11]}  b5 {[%clk 0:00:25]} 32. cxb5 {[%clk 0:00:07]}  Rc2 {[%clk 0:00:26]} 33. Ke3 {[%clk 0:00:07]}  Rxa2 {[%clk 0:00:26]} 34. Bf1 {[%clk 0:00:07]}  Rb2 {[%clk 0:00:21]} 35. Bxd3 {[%clk 0:00:07]}  Rxb3 {[%clk 0:00:21]} 36. Kd4 {[%clk 0:00:05]}  Ra3 {[%clk 0:00:10]} 37. Be2 {[%clk 0:00:04]}  Kd7 {[%clk 0:00:06]} 38. Bg4 {[%clk 0:00:03]}  Ke7 {[%clk 0:00:06]} 39. Be2 {[%clk 0:00:03]}  Ra1 {[%clk 0:00:06]} 40. Bf3 {[%clk 0:00:03]}  Rc1 {[%clk 0:00:06]} 41. Be2 {[%clk 0:00:04]}  e5+ {[%clk 0:00:07]} 42. Kd3 {[%clk 0:00:03]}  Kd7 {[%clk 0:00:07]} 43. Ke3 {[%clk 0:00:04]}  Kc7 {[%clk 0:00:07]} 44. d4 {[%clk 0:00:04]}  Kb6 {[%clk 0:00:07]} 45. dxe5 {[%clk 0:00:04]}  dxe5 {[%clk 0:00:08]} 46. Kd2 {[%clk 0:00:04]}  Rc5 {[%clk 0:00:08]} 47. Bd3 {[%clk 0:00:04]}  Rxb5 {[%clk 0:00:09]} 48. Bxb5 {[%clk 0:00:04]}  Kxb5 {[%clk 0:00:09]} 49. Kc3 {[%clk 0:00:05]}  Kc5 {[%clk 0:00:10]} 50. Kd3 {[%clk 0:00:05]}  Kb4 {[%clk 0:00:11]} 51. Kc2 {[%clk 0:00:05]}  Kc4 {[%clk 0:00:12]} 52. Kd2 {[%clk 0:00:03]}  Kd4 {[%clk 0:00:13]} 0-1


[Site "https://www.chess.com"]

[Event "Titled Tuesday Blitz August 15 Late 2023"]
[White "SmirnovAlexandrA"]
[Black "Gurevich, Dmitry"]
[BlackFideId "2000407"]
[WhiteElo "2629"]
[BlackElo "2469"]
[Result "1/2-1/2"]
[Round "5"]
[TimeControl "180+1"]
[Date "2023.08.15"]
[WhiteClock "0:01:18"]
[BlackClock "0:01:42"]
[Board "58"]

1. e4 {[%clk 0:02:59]}  c5 {[%clk 0:02:59]} 2. Nf3 {[%clk 0:02:58]}  d6 {[%clk 0:02:59]} 3. Bc4 {[%clk 0:02:57]}  e6 {[%clk 0:02:56]} 4. Qe2 {[%clk 0:02:56]}  Nf6 {[%clk 0:02:56]} 5. e5 {[%clk 0:02:56]}  dxe5 {[%clk 0:02:55]} 6. Nxe5 {[%clk 0:02:57]}  Bd6 {[%clk 0:02:49]} 7. f4 {[%clk 0:02:56]}  O-O {[%clk 0:02:47]} 8. O-O {[%clk 0:02:56]}  Qc7 {[%clk 0:02:44]} 9. b3 {[%clk 0:02:55]}  Nc6 {[%clk 0:02:43]} 10. Nxc6 {[%clk 0:02:55]}  Qxc6 {[%clk 0:02:43]} 11. Bb2 {[%clk 0:02:54]}  Qe4 {[%clk 0:02:30]} 12. Nc3 {[%clk 0:02:17]}  Qxe2 {[%clk 0:02:28]} 13. Bxe2 {[%clk 0:02:18]}  Bd7 {[%clk 0:02:19]} 14. Bf3 {[%clk 0:02:15]}  Rab8 {[%clk 0:02:16]} 15. Ne4 {[%clk 0:02:14]}  Nxe4 {[%clk 0:02:13]} 16. Bxe4 {[%clk 0:02:15]}  Rfc8 {[%clk 0:02:04]} 17. d3 {[%clk 0:02:14]}  Bc6 {[%clk 0:01:58]} 18. Bxc6 {[%clk 0:02:11]}  Rxc6 {[%clk 0:01:58]} 19. f5 {[%clk 0:02:11]}  exf5 {[%clk 0:01:56]} 20. Rxf5 {[%clk 0:02:12]}  Re8 {[%clk 0:01:54]} 21. g3 {[%clk 0:02:00]}  Bf8 {[%clk 0:01:52]} 22. Raf1 {[%clk 0:01:56]}  f6 {[%clk 0:01:52]} 23. Kg2 {[%clk 0:01:35]}  Rce6 {[%clk 0:01:51]} 24. a4 {[%clk 0:01:33]}  b6 {[%clk 0:01:50]} 25. Rd5 {[%clk 0:01:22]}  Rd6 {[%clk 0:01:47]} 26. Rxd6 {[%clk 0:01:21]}  Bxd6 {[%clk 0:01:46]} 27. Bc3 {[%clk 0:01:19]}  Re2+ {[%clk 0:01:43]} 28. Rf2 {[%clk 0:01:19]}  Rxf2+ {[%clk 0:01:43]} 29. Kxf2 {[%clk 0:01:20]}  Kf7 {[%clk 0:01:42]} 30. Kf3 {[%clk 0:01:18]} 1/2-1/2


[Site "https://www.chess.com"]

[Event "Titled Tuesday Blitz August 15 Late 2023"]
[White "Ibadov, Dashgyn"]
[Black "Mazurkiewicz, Michal"]
[WhiteFideId "24107514"]
[BlackFideId "1124943"]
[WhiteElo "2601"]
[BlackElo "2429"]
[Result "1-0"]
[Round "5"]
[TimeControl "180+1"]
[Date "2023.08.15"]
[WhiteClock "0:01:09"]
[BlackClock "0:00:03"]
[Board "60"]

1. e4 {[%clk 0:03:00]}  d6 {[%clk 0:03:00]} 2. d4 {[%clk 0:03:00]}  Nf6 {[%clk 0:02:59]} 3. Nc3 {[%clk 0:03:01]}  c6 {[%clk 0:03:00]} 4. Nf3 {[%clk 0:03:01]}  Bg4 {[%clk 0:03:00]} 5. h3 {[%clk 0:03:00]}  Bh5 {[%clk 0:03:00]} 6. Be3 {[%clk 0:02:56]}  e6 {[%clk 0:02:59]} 7. Be2 {[%clk 0:02:50]}  d5 {[%clk 0:02:58]} 8. e5 {[%clk 0:02:49]}  Nfd7 {[%clk 0:02:58]} 9. O-O {[%clk 0:02:45]}  c5 {[%clk 0:02:54]} 10. dxc5 {[%clk 0:02:32]}  Bxf3 {[%clk 0:02:51]} 11. Bxf3 {[%clk 0:02:32]}  Nxe5 {[%clk 0:02:51]} 12. Be2 {[%clk 0:02:19]}  Nbc6 {[%clk 0:02:48]} 13. f4 {[%clk 0:02:16]}  d4 {[%clk 0:02:47]} 14. fxe5 {[%clk 0:02:05]}  dxe3 {[%clk 0:02:46]} 15. Qe1 {[%clk 0:01:47]}  Bxc5 {[%clk 0:01:44]} 16. Qg3 {[%clk 0:01:47]}  O-O {[%clk 0:01:37]} 17. Ne4 {[%clk 0:01:46]}  Be7 {[%clk 0:01:21]} 18. Nf6+ {[%clk 0:01:43]}  Kh8 {[%clk 0:00:45]} 19. Qh4 {[%clk 0:01:43]}  gxf6 {[%clk 0:00:39]} 20. exf6 {[%clk 0:01:40]}  Bxf6 {[%clk 0:00:16]} 21. Rxf6 {[%clk 0:01:39]}  Ne5 {[%clk 0:00:17]} 22. Raf1 {[%clk 0:01:13]}  Ng6 {[%clk 0:00:15]} 23. Qh6 {[%clk 0:01:09]}  Qd4 {[%clk 0:00:12]} 24. Rxf7 {[%clk 0:01:07]}  Rxf7 {[%clk 0:00:11]} 25. Rxf7 {[%clk 0:01:08]}  Nf8 {[%clk 0:00:03]} 26. Rxf8+ {[%clk 0:01:08]}  Rxf8 {[%clk 0:00:03]} 27. Qxf8# {[%clk 0:01:09]} 1-0


[Site "https://www.chess.com"]

[Event "Titled Tuesday Blitz August 15 Late 2023"]
[White "Phillips, Rene"]
[Black "Budrewicz, Krzysztof"]
[WhiteFideId "2056275"]
[BlackFideId "1127950"]
[WhiteElo "2114"]
[BlackElo "2566"]
[Result "0-1"]
[Round "5"]
[TimeControl "180+1"]
[Date "2023.08.15"]
[WhiteClock "0:00:31"]
[BlackClock "0:02:18"]
[Board "63"]

1. d4 {[%clk 0:03:00]}  g6 {[%clk 0:02:57]} 2. Bf4 {[%clk 0:03:01]}  Bg7 {[%clk 0:02:57]} 3. e3 {[%clk 0:03:01]}  c5 {[%clk 0:02:58]} 4. c3 {[%clk 0:03:01]}  Nc6 {[%clk 0:02:58]} 5. Nd2 {[%clk 0:02:59]}  cxd4 {[%clk 0:02:56]} 6. exd4 {[%clk 0:02:59]}  Nf6 {[%clk 0:02:56]} 7. Ngf3 {[%clk 0:02:58]}  O-O {[%clk 0:02:56]} 8. h3 {[%clk 0:02:56]}  d6 {[%clk 0:02:57]} 9. Be2 {[%clk 0:02:56]}  e5 {[%clk 0:02:57]} 10. Be3 {[%clk 0:02:50]}  Nd5 {[%clk 0:02:50]} 11. O-O {[%clk 0:02:43]}  Nxe3 {[%clk 0:02:50]} 12. fxe3 {[%clk 0:02:44]}  Bh6 {[%clk 0:02:50]} 13. Kf2 {[%clk 0:02:39]}  Re8 {[%clk 0:02:41]} 14. d5 {[%clk 0:02:34]}  e4 {[%clk 0:02:41]} 15. Nd4 {[%clk 0:02:08]}  Nxd4 {[%clk 0:02:31]} 16. cxd4 {[%clk 0:02:03]}  Qh4+ {[%clk 0:02:29]} 17. g3 {[%clk 0:02:03]}  Qxh3 {[%clk 0:02:28]} 18. Rh1 {[%clk 0:01:54]}  Bxe3+ {[%clk 0:02:22]} 19. Kxe3 {[%clk 0:01:37]}  Qxg3+ {[%clk 0:02:22]} 20. Bf3 {[%clk 0:00:54]}  exf3+ {[%clk 0:02:21]} 21. Kd3 {[%clk 0:00:50]}  Bf5+ {[%clk 0:02:20]} 22. Kc3 {[%clk 0:00:48]}  Rac8+ {[%clk 0:02:19]} 23. Nc4 {[%clk 0:00:31]}  f2+ {[%clk 0:02:18]} 0-1


[Site "https://www.chess.com"]

[Event "Titled Tuesday Blitz August 15 Late 2023"]
[White "Michalczak, Thomas"]
[Black "Parligras, Mircea-Emilian"]
[WhiteFideId "4622634"]
[BlackFideId "1204297"]
[WhiteElo "2481"]
[BlackElo "2764"]
[Result "0-1"]
[Round "5"]
[TimeControl "180+1"]
[Date "2023.08.15"]
[WhiteClock "0:00:07"]
[BlackClock "0:00:05"]
[Board "67"]

1. e4 {[%clk 0:03:00]}  c5 {[%clk 0:02:58]} 2. c3 {[%clk 0:03:01]}  d5 {[%clk 0:02:55]} 3. exd5 {[%clk 0:03:01]}  Qxd5 {[%clk 0:02:56]} 4. Nf3 {[%clk 0:03:02]}  Nf6 {[%clk 0:02:56]} 5. Na3 {[%clk 0:03:02]}  Qd8 {[%clk 0:02:53]} 6. Bc4 {[%clk 0:03:01]}  e6 {[%clk 0:02:51]} 7. O-O {[%clk 0:03:00]}  Nc6 {[%clk 0:02:48]} 8. Qe2 {[%clk 0:03:01]}  Be7 {[%clk 0:02:47]} 9. Rd1 {[%clk 0:03:01]}  a6 {[%clk 0:02:42]} 10. d4 {[%clk 0:02:59]}  cxd4 {[%clk 0:02:42]} 11. Nc2 {[%clk 0:02:55]}  b5 {[%clk 0:02:39]} 12. Bb3 {[%clk 0:02:56]}  Bb7 {[%clk 0:02:35]} 13. Ncxd4 {[%clk 0:02:55]}  Nxd4 {[%clk 0:02:35]} 14. Rxd4 {[%clk 0:02:56]}  Qb6 {[%clk 0:02:32]} 15. Ne5 {[%clk 0:02:42]}  O-O {[%clk 0:02:28]} 16. Bg5 {[%clk 0:02:22]}  Rad8 {[%clk 0:02:23]} 17. Rad1 {[%clk 0:02:21]}  Rxd4 {[%clk 0:02:10]} 18. Rxd4 {[%clk 0:02:22]}  h6 {[%clk 0:01:48]} 19. Bxf6 {[%clk 0:02:20]}  Bxf6 {[%clk 0:01:48]} 20. Nd7 {[%clk 0:02:21]}  Qc6 {[%clk 0:01:42]} 21. Nxf6+ {[%clk 0:02:18]}  gxf6 {[%clk 0:01:42]} 22. Qg4+ {[%clk 0:02:04]}  Kh7 {[%clk 0:01:32]} 23. Bc2+ {[%clk 0:01:58]}  f5 {[%clk 0:01:31]} 24. Qh3 {[%clk 0:01:59]}  Rg8 {[%clk 0:01:24]} 25. Rg4 {[%clk 0:01:34]}  Rxg4 {[%clk 0:01:11]} 26. Qxg4 {[%clk 0:01:35]}  b4 {[%clk 0:01:05]} 27. c4 {[%clk 0:01:27]}  a5 {[%clk 0:00:58]} 28. b3 {[%clk 0:01:26]}  Qd6 {[%clk 0:00:51]} 29. h4 {[%clk 0:01:05]}  Qe5 {[%clk 0:00:47]} 30. Qd1 {[%clk 0:01:01]}  Kg7 {[%clk 0:00:37]} 31. Bd3 {[%clk 0:00:53]}  Bc6 {[%clk 0:00:35]} 32. Be2 {[%clk 0:00:47]}  Qf4 {[%clk 0:00:33]} 33. h5 {[%clk 0:00:31]}  e5 {[%clk 0:00:29]} 34. Bf3 {[%clk 0:00:30]}  e4 {[%clk 0:00:29]} 35. Qd4+ {[%clk 0:00:30]}  Kh7 {[%clk 0:00:24]} 36. Qf6 {[%clk 0:00:21]}  Be8 {[%clk 0:00:20]} 37. Be2 {[%clk 0:00:18]}  Qd2 {[%clk 0:00:18]} 38. Bf1 {[%clk 0:00:18]}  Qd7 {[%clk 0:00:15]} 39. g3 {[%clk 0:00:15]}  Qe6 {[%clk 0:00:14]} 40. Qd4 {[%clk 0:00:14]}  f4 {[%clk 0:00:12]} 41. gxf4 {[%clk 0:00:12]}  Bc6 {[%clk 0:00:11]} 42. Bg2 {[%clk 0:00:11]}  Qg4 {[%clk 0:00:10]} 43. Kf1 {[%clk 0:00:09]}  e3 {[%clk 0:00:07]} 44. Be4+ {[%clk 0:00:05]}  Bxe4 {[%clk 0:00:07]} 45. Qxe4+ {[%clk 0:00:06]}  Kg7 {[%clk 0:00:06]} 46. fxe3 {[%clk 0:00:06]}  Qh3+ {[%clk 0:00:06]} 47. Ke2 {[%clk 0:00:06]}  Qxh5+ {[%clk 0:00:06]} 48. Kd3 {[%clk 0:00:07]}  Qd1# {[%clk 0:00:05]} 0-1


[Site "https://www.chess.com"]